bitfinex/quotes_ETHUSD_20220227
["timestamp","ask_amount","ask_price","bid_price","bid_amount"]
[1645982473293,4.5,2771.1,2770.7,0.00558078]
[1645982473494,3.5,2771.1,2770.7,0.00558078]
[1645982473695,5.7236,2771.1,2770.7,0.00558078]
[1645982473895,5.7236,2771.1,2770.0,0.00096]
[1645982474099,5.7236,2771.1,2770.7,0.00558091]
[1645982474297,3.5,2771.0,2770.7,0.00558091]
[1645982474700,4.5,2771.0,2770.7,0.00558091]
[1645982474902,3.5,2771.0,2770.7,0.00558091]
[1645982475202,4.5,2771.0,2770.7,0.00558091]
[1645982475403,4.68008108,2771.0,2770.7,0.00558084]
[1645982475852,4.0,2770.9,2770.3,0.02232643]
[1645982476040,4.40345,2770.8,2770.3,0.02232643]
[1645982476441,5.40345,2770.8,2770.3,0.02232643]
[1645982476748,0.90343,2770.6,2769.1,0.00096]
[1645982476945,0.90343,2770.6,2769.2,1.08669687]
[1645982476946,1.80685,2770.4,2769.2,1.08669687]
[1645982477146,3.5,2770.3,2769.3,1.52763124]
[1645982477546,4.5,2770.3,2769.3,0.00096]
[1645982477744,0.90343,2770.1,2769.2,1.5266921]
[1645982477944,0.90343,2770.1,2769.2,1.5276521]
[1645982478147,0.90343,2770.1,2769.2,0.00096]
[1645982478647,3.5,2770.0,2769.2,0.00096]
[1645982478846,1.0,2770.0,2769.2,0.00096]
[1645982479046,4.5,2770.0,2769.2,1.14643848]
[1645982479251,4.5,2770.0,2769.3,1.5266921]
[1645982479252,1.0,2770.0,2769.3,1.5266921]
[1645982479447,1.0,2770.0,2769.3,1.5276521]
[1645982479691,3.5,2770.0,2769.3,1.5276521]
[1645982479891,0.90343,2770.1,2769.1,0.00096]
[1645982480091,4.5,2770.0,2769.5,0.00576401]
[1645982481297,4.5,2770.0,2769.6,0.00576393]
[1645982481298,7.17681,2770.0,2769.6,0.00576393]
[1645982482695,7.17681,2770.0,2769.7,0.00576389]
[1645982483096,6.30711,2770.0,2769.7,0.00576389]
[1645982483531,6.30711,2770.0,2768.7,0.00096]
[1645982483731,6.30711,2770.0,2769.7,0.00557207]
[1645982484030,5.0,2769.9,2769.7,0.00557207]
[1645982484332,1.80751,2769.7,2769.3,0.02229163]
[1645982484535,4.0198,2769.6,2769.3,0.02229163]
[1645982484738,2.5,2769.5,2768.4,0.0134912]
[1645982484932,3.5,2769.4,2768.4,0.0134912]
[1645982485333,4.5,2769.4,2768.4,0.0134912]
[1645982485531,4.656,2769.4,2768.4,0.0134912]
[1645982485734,0.90377,2769.3,2768.4,0.0134912]
[1645982485934,1.42277,2769.3,2768.4,0.0134912]
[1645982486534,4.92277,2769.3,2768.4,0.0134912]
[1645982486833,5.92277,2769.3,2768.4,0.0134912]
[1645982488690,5.92277,2769.3,2768.7,0.00574843]
[1645982489486,5.92277,2769.3,2768.4,0.0134912]
[1645982489698,5.92277,2769.3,2768.9,0.00574831]
[1645982490093,0.18008108,2769.2,2768.4,0.0364879]
[1645982490296,0.519,2769.1,2768.4,0.0364879]
[1645982490493,0.90385,2768.9,2768.5,0.06387501]
[1645982491360,3.5,2768.8,2768.5,0.06387501]
[1645982491560,1.4230038,2768.8,2768.5,0.06387501]
[1645982491759,0.20241593,2769.0,2768.5,0.06387501]
[1645982491957,3.68179,2769.3,2768.5,0.06387501]
[1645982491958,2.7781,2769.3,2768.5,0.06387501]
[1645982492361,2.78134148,2769.3,2768.5,0.06387501]
[1645982492656,2.78134148,2769.3,2768.8,1.05281937]
[1645982492856,0.00324148,2769.3,2768.8,1.05281937]
[1645982493061,0.0008,2769.6,2768.8,1.05281937]
[1645982493256,0.0008,2769.6,2768.8,1.058198]
[1645982493257,0.00537751,2769.3,2768.8,1.058198]
[1645982494255,0.0008,2769.6,2768.8,1.05281937]
[1645982494687,0.00537751,2769.3,2768.8,1.058198]
[1645982495488,0.0008,2769.6,2768.8,1.058198]
[1645982495489,0.0008,2769.6,2768.8,1.05281937]
[1645982495690,0.00540181,2769.3,2768.8,1.0582223]
[1645982496691,0.0008,2769.6,2768.8,1.05281937]
[1645982496890,0.00540181,2769.3,2768.8,0.00540293]
[1645982497891,0.0008,2769.6,2768.7,0.06361624]
[1645982498090,0.00540181,2769.3,2769.2,1.41047369]
[1645982498344,0.00540181,2769.3,2768.8,0.00540293]
[1645982499136,0.00540181,2769.3,2768.7,0.06457624]
[1645982499336,0.00540018,2769.3,2768.8,0.0054013]
[1645982500345,0.0008,2769.6,2768.8,1.4170489]
[1645982500545,0.00540018,2769.3,2768.8,0.0054013]
[1645982501551,4.5,2769.4,2768.6,1.09296496]
[1645982501748,0.00540018,2769.3,2768.8,0.0054013]
[1645982502193,3.50540018,2769.3,2768.8,0.0054013]
[1645982502592,4.5,2769.3,2768.4,0.0134912]
[1645982502992,0.90372,2769.2,2768.8,0.00540141]
[1645982503193,3.5,2769.1,2768.8,0.00540141]
[1645982503593,4.5,2769.1,2768.8,0.00540141]
[1645982503793,4.5,2769.1,2768.4,0.0134912]
[1645982505403,4.5,2769.1,2768.6,0.00539846]
[1645982506233,4.5,2769.1,2768.4,0.0134912]
[1645982506633,4.5,2769.1,2768.7,0.00552667]
[1645982507637,4.5,2769.1,2768.8,0.00552663]
[1645982508441,1.98780108,2769.0,2768.8,0.00552663]
[1645982508642,3.5,2768.9,2768.4,0.0134912]
[1645982508840,0.90385,2768.8,2768.4,0.0134912]
[1645982509043,3.5,2768.7,2768.4,0.0134912]
[1645982509240,1.0,2768.7,2768.4,0.0134912]
[1645982509695,2.1949,2768.9,2768.4,0.0134912]
[1645982509896,9.8307046,2769.1,2768.4,0.0134912]
[1645982509897,10.8307046,2769.1,2768.4,0.0134912]
[1645982510096,0.00552555,2769.3,2768.4,0.5324912]
[1645982510397,0.00552555,2769.3,2768.5,4.79701403]
[1645982510398,0.00538826,2769.3,2768.5,4.79701403]
[1645982510598,0.00538826,2769.3,2768.6,0.6634]
[1645982510793,0.01799384,2769.1,2768.7,3.5]
[1645982510996,0.00538826,2769.3,2769.1,0.03501069]
[1645982511394,0.00547699,2769.3,2769.1,0.03501069]
[1645982511594,0.00538873,2769.3,2769.1,0.03501069]
[1645982511795,0.00538873,2769.3,2769.2,1.17221188]
[1645982511997,0.00538873,2769.3,2769.1,0.03501069]
[1645982512296,0.0008,2769.6,2769.1,0.03501069]
[1645982513440,0.0008,2769.6,2769.2,1.03154781]
[1645982513843,9.803e-05,2769.5,2769.2,1.03154781]
[1645982514144,9.803e-05,2769.5,2769.3,3.5]
[1645982514343,9.803e-05,2769.5,2769.4,0.519]
[1645982514545,9.803e-05,2769.5,2769.2,8.74429291]
[1645982514744,8.1643,2771.2,2769.3,0.519]
[1645982514943,8.1643,2771.2,2769.4,3.5]
[1645982515144,8.1643,2771.2,2770.4,1.31890419]
[1645982515346,0.21396315,2771.3,2770.4,1.31890419]
[1645982515545,2.70828895,2771.4,2770.4,1.31890419]
[1645982515848,0.90318,2770.9,2770.4,1.31890419]
[1645982516243,0.90318,2770.9,2769.7,0.00096]
[1645982517490,0.0036097,2770.4,2769.6,1.38671965]
[1645982517689,0.0036097,2770.4,2769.7,0.00096]
[1645982517893,0.0036097,2770.4,2769.6,1.38671965]
[1645982518291,0.90318,2770.9,2769.6,1.38671965]
[1645982518495,0.90318,2770.9,2769.7,0.00096]
[1645982518691,0.00574572,2770.1,2769.7,0.00096]
[1645982518892,0.00574572,2770.1,2769.6,1.38671965]
[1645982519897,1.8066,2770.8,2769.6,1.38671965]
[1645982520097,1.8066,2770.8,2770.3,1.09488167]
[1645982521247,0.90328,2770.6,2770.3,1.09488167]
[1645982522251,0.90902753,2770.6,2770.3,1.09488167]
[1645982522951,0.00574753,2770.6,2770.3,1.09488167]
[1645982523452,0.01149506,2770.6,2770.3,1.09488167]
[1645982523655,0.01149506,2770.6,2770.3,4.59488167]
[1645982523656,0.00574753,2770.6,2770.3,4.59488167]
[1645982524050,0.00574753,2770.6,2770.4,0.519]
[1645982524449,1.80509165,2771.6,2771.3,1.42296726]
[1645982524700,1.80509165,2771.6,2771.3,1.28067054]
[1645982525300,1.80509165,2771.7,2771.3,1.28067054]
[1645982526003,0.00574676,2771.6,2771.3,1.28067054]
[1645982527002,2.18206566,2772.0,2771.3,1.28067054]
[1645982527204,0.00574676,2771.6,2771.3,1.28067054]
[1645982529140,2.18206566,2772.0,2771.3,1.28067054]
[1645982529539,0.00574676,2771.6,2771.3,1.28067054]
[1645982530345,0.90285,2771.9,2771.3,1.28067054]
[1645982530847,0.00574676,2771.6,2771.3,1.28067054]
[1645982531647,0.90285,2771.9,2771.3,1.28067054]
[1645982531847,0.00574676,2771.6,2771.3,1.28067054]
[1645982532889,0.37689732,2771.8,2771.3,1.28067054]
[1645982533087,0.00360765,2771.6,2771.3,1.28067054]
[1645982533888,0.90285,2771.9,2771.3,1.28067054]
[1645982534193,0.00574942,2771.6,2771.3,1.28067054]
[1645982535195,0.00574942,2771.6,2771.4,3.5]
[1645982535196,4.942e-05,2771.6,2771.4,3.5]
[1645982535396,4.942e-05,2771.6,2771.5,0.1443]
[1645982535397,9.884e-05,2771.6,2771.5,0.1443]
[1645982535597,9.884e-05,2771.6,2771.5,3.6443]
[1645982535858,9.884e-05,2771.6,2771.5,0.6633]
[1645982536448,1.80509165,2773.1,2770.9,5.9887]
[1645982536449,7.3,2772.2,2770.9,5.9887]
[1645982536644,7.3,2772.2,2770.8,1.1272]
[1645982536849,7.48008108,2772.2,2771.5,1.35369432]
[1645982537044,8.48008108,2772.2,2771.5,1.35369432]
[1645982538145,0.00360071,2772.0,2771.5,1.35369432]
[1645982538746,0.37695244,2772.5,2771.5,1.87269432]
[1645982539145,0.00574919,2771.9,2771.5,1.87269432]
[1645982540000,4.919e-05,2771.9,2771.6,0.1443]
[1645982540203,4.919e-05,2771.9,2771.7,0.519]
[1645982540399,4.923e-05,2771.8,2771.7,1.42124]
[1645982541099,4.923e-05,2771.8,2771.7,4.92124]
[1645982541498,7.3,2772.9,2771.7,4.92124]
[1645982542501,7.3,2772.9,2771.7,5.11065427]
[1645982542701,0.00330695,2772.4,2771.7,4.92124]
[1645982543379,0.00330695,2772.4,2771.7,4.019]
[1645982543558,7.31322581,2772.9,2771.7,4.019]
[1645982543959,0.00546374,2772.2,2771.7,4.019]
[1645982545161,0.00546382,2772.1,2771.7,4.019]
[1645982545761,0.00546382,2772.1,2771.7,4.2037665]
[1645982545962,0.00546382,2772.1,2771.7,4.019]
[1645982546163,0.00546382,2772.1,2771.7,4.2215143]
[1645982546361,0.00547449,2772.0,2771.7,4.019]
[1645982546964,0.00547449,2772.0,2771.6,0.00547538]
[1645982547621,0.00547449,2772.0,2771.6,0.00547532]
[1645982547622,0.00547453,2772.0,2771.6,0.00547532]
[1645982548723,0.0052897,2772.0,2771.6,0.00529047]
[1645982549832,8.3,2772.3,2771.5,1.35369432]
[1645982550031,0.00528916,2772.0,2771.6,0.00528992]
[1645982551064,0.01057832,2772.0,2771.6,0.01057984]
[1645982551264,0.00528916,2772.0,2771.6,0.00528992]
[1645982552069,8.3,2772.3,2771.5,1.35369432]
[1645982552269,8.3,2772.3,2771.6,0.00529618]
[1645982552270,0.00529542,2772.0,2771.6,0.00529618]
[1645982553271,8.3,2772.3,2771.5,1.35369432]
[1645982553471,0.00557054,2772.0,2771.6,0.00557134]
[1645982554473,8.3,2772.3,2771.5,1.35369432]
[1645982554696,0.00557054,2772.0,2771.6,0.00557134]
[1645982556096,0.005642,2772.0,2771.6,0.00564282]
[1645982556894,0.005642,2772.0,2771.5,1.87269432]
[1645982557097,8.3,2772.3,2771.6,3.50205447]
[1645982557098,1.0,2772.3,2771.6,3.50205447]
[1645982557297,8.3,2772.9,2771.7,0.6633]
[1645982557495,8.3,2772.9,2771.8,3.5]
[1645982557700,1.0,2772.9,2771.9,0.6631]
[1645982557898,1.0,2772.9,2772.0,3.5]
[1645982558096,7.3,2773.4,2772.1,1.89086813]
[1645982558359,7.3,2773.4,2773.3,1.16563239]
[1645982558548,7.3,2773.4,2773.3,1.04906916]
[1645982558950,7.67679004,2773.4,2773.3,1.04906916]
[1645982559752,7.3,2773.4,2773.3,1.04906916]
[1645982560151,8.3,2773.4,2772.4,0.1441]
[1645982560754,3.5,2773.3,2772.4,0.1441]
[1645982560953,4.5,2773.3,2772.4,0.5430153]
[1645982561154,4.68008108,2773.3,2772.2,1.12875883]
[1645982561353,0.18008108,2773.2,2772.2,1.12875883]
[1645982561953,0.00560723,2772.9,2771.9,0.1441]
[1645982562201,0.00560723,2772.9,2771.6,10.50296986]
[1645982562202,0.90812723,2772.9,2771.6,10.14350986]
[1645982562403,3.68008108,2772.8,2771.6,0.00560986]
[1645982562802,0.18008108,2772.7,2771.3,0.1442]
[1645982563007,0.18008108,2772.7,2771.7,1.10712987]
[1645982563203,0.00563969,2772.3,2771.6,0.00564122]
[1645982563604,0.18572077,2772.3,2771.6,0.00564122]
[1645982564004,0.18008108,2772.3,2770.8,2.7084]
[1645982564205,0.69908108,2772.3,2770.5,3.40346]
[1645982564407,0.90287,2772.0,2771.6,0.0056409]
[1645982564606,4.40287,2772.0,2771.6,0.0056409]
[1645982565005,5.40287,2772.0,2771.6,0.0056409]
[1645982565206,5.40287,2772.0,2771.1,1.14151168]
[1645982565407,5.40850989,2772.0,2771.6,0.0056407]
[1645982565850,4.50563989,2772.0,2771.6,0.0056407]
[1645982566446,4.5,2772.0,2771.1,1.14151168]
[1645982566647,4.50557587,2772.0,2771.6,0.00557668]
[1645982566850,8.50226605,2772.0,2771.6,0.00557668]
[1645982567049,9.01844495,2772.0,2771.6,0.00557668]
[1645982567649,0.90288,2771.9,2771.6,0.00557668]
[1645982567850,3.5,2771.8,2771.6,0.00557668]
[1645982568048,3.68008108,2771.8,2771.6,0.00557668]
[1645982568251,4.68008108,2771.8,2771.6,0.00557668]
[1645982568452,1.18008108,2771.8,2771.6,0.00557668]
[1645982568849,0.00557587,2772.0,2771.6,0.00557668]
[1645982569049,0.90272,2772.2,2770.5,0.1443]
[1645982569249,0.00521324,2772.0,2771.6,0.00521404]
[1645982570110,0.18008108,2772.1,2770.5,0.1443]
[1645982570310,0.90284,2771.9,2771.6,0.00519513]
[1645982571309,0.90284,2771.9,2771.3,1.41678028]
[1645982571709,0.90284,2771.9,2771.6,0.00519507]
[1645982572910,0.90284,2771.9,2771.6,0.00538464]
[1645982573746,0.90284,2771.9,2771.3,1.41678028]
[1645982573946,0.00539397,2772.0,2771.6,0.00539475]
[1645982575160,0.00539403,2772.0,2771.6,0.00539481]
[1645982575655,0.18008108,2771.9,2771.6,0.00539481]
[1645982575852,0.90291,2771.8,2771.6,0.00539481]
[1645982576160,0.18008108,2771.7,2771.6,0.00539481]
[1645982576351,0.18008108,2771.7,2770.5,0.1443]
[1645982576554,0.18008108,2771.7,2771.6,0.00522085]
[1645982577307,0.18008108,2771.7,2771.1,1.16625786]
[1645982577505,0.18008108,2771.7,2771.5,0.00509476]
[1645982577707,0.90291,2771.8,2771.5,0.00509476]
[1645982577906,1.08299108,2771.8,2771.5,0.00509476]
[1645982578508,1.08299108,2771.8,2770.5,0.1443]
[1645982578711,1.08299108,2771.8,2770.6,1.52623547]
[1645982578907,1.08299108,2771.8,2771.5,0.00509476]
[1645982579710,1.08299108,2771.8,2770.5,1.54029684]
[1645982579912,1.08299108,2771.8,2771.5,0.0052911]
[1645982580961,4.51563027,2771.8,2771.5,0.0044911]
[1645982581161,4.51563027,2771.8,2771.5,0.0054398]
[1645982581162,8.30634,2771.7,2771.5,0.0054398]
[1645982581362,1.42217,2771.6,2771.5,0.0054398]
[1645982581559,3.5,2771.5,2770.9,0.02176368]
[1645982581763,4.019,2771.5,2770.9,0.02176368]
[1645982581959,0.90316,2771.4,2770.9,0.02176368]
[1645982582160,1.28950073,2771.4,2769.4,3.50096]
[1645982582358,1.28950073,2771.4,2769.5,1.52657396]
[1645982582359,2.48200073,2771.4,2769.5,1.52657396]
[1645982582559,0.9031532,2771.2,2769.6,0.00096]
[1645982582761,0.90321,2770.7,2769.6,0.00096]
[1645982583564,0.90321,2770.7,2769.6,3.50096]
[1645982583760,0.90321,2770.7,2770.0,1.3000428]
[1645982584260,0.90321,2770.7,2769.3,3.50096]
[1645982584460,0.90321,2770.7,2769.4,1.52662104]
[1645982584700,0.90321,2770.7,2770.2,0.0056466]
[1645982585700,0.90321,2770.7,2769.7,1.22327852]
[1645982586000,0.90321,2770.7,2770.3,0.00564652]
[1645982586400,1.08329108,2770.7,2770.3,0.00564652]
[1645982587000,1.08329108,2770.7,2769.6,1.21393623]
[1645982587203,1.08329108,2770.7,2770.4,0.00574676]
[1645982588205,0.90321,2770.7,2770.4,0.00574676]
[1645982588443,0.90321,2770.7,2770.4,0.00574672]
[1645982589646,0.90321,2770.7,2770.4,0.0054366]
[1645982590247,3.52447108,2770.6,2770.4,0.0054366]
[1645982590448,3.52447108,2770.6,2769.4,0.54686243]
[1645982590648,4.52447108,2770.6,2769.4,0.54686243]
[1645982590859,4.52447108,2770.6,2770.4,0.0050682]
[1645982591049,1.02447108,2770.6,2770.4,0.0050682]
[1645982591252,0.02447108,2770.6,2770.4,0.0050682]
[1645982592110,0.02447108,2770.6,2770.4,0.00506823]
[1645982592308,0.02447108,2770.6,2770.4,1.13865513]
[1645982592508,0.02447108,2770.6,2770.4,0.00506823]
[1645982593312,0.02447108,2770.6,2770.4,0.0052073]
[1645982593507,0.02447108,2770.6,2770.4,1.35392652]
[1645982594109,0.02447108,2770.6,2770.4,1.34871922]
[1645982594308,0.02447108,2770.6,2770.4,1.35404062]
[1645982595415,4.6144337,2771.5,2770.4,1.34871922]
[1645982595613,1.1144337,2771.5,2770.4,1.35404062]
[1645982595866,18.7304337,2771.6,2770.4,1.35404062]
[1645982596451,18.7304337,2771.6,2770.4,1.34871922]
[1645982596852,18.7304337,2771.6,2770.9,0.00549206]
[1645982597553,3.5,2771.5,2770.9,0.00549206]
[1645982597853,4.6144337,2771.5,2770.4,1.34871922]
[1645982598055,4.6144337,2771.5,2771.1,0.00574618]
[1645982598254,1.1144337,2771.5,2771.1,0.00574618]
[1645982598454,1.0,2771.5,2771.1,0.00574618]
[1645982598657,0.29451478,2771.6,2771.1,0.00574618]
[1645982598856,0.29451478,2771.6,2770.4,1.34871922]
[1645982598857,0.18008108,2771.6,2770.8,0.519]
[1645982599056,0.18008108,2771.6,2770.4,1.86771922]
[1645982599254,0.18008108,2771.6,2771.2,0.00574614]
[1645982600107,0.18008108,2771.6,2770.4,1.86771922]
[1645982600407,0.18008108,2771.6,2771.3,0.00574606]
[1645982601606,0.00574497,2771.8,2771.3,0.00574602]
[1645982602606,1.1701,2772.1,2771.0,1.79079823]
[1645982602808,1.1701,2772.1,2771.4,0.00574605]
[1645982602809,0.0057451,2771.8,2771.4,0.00574605]
[1645982603851,5.6701,2772.1,2771.0,0.54179895]
[1645982604051,0.00563745,2771.8,2771.4,0.00416669]
[1645982604855,1.1701,2772.1,2771.1,1.25841447]
[1645982605059,1.1701,2772.1,2771.7,1.11664277]
[1645982605256,1.1144337,2772.2,2771.7,1.11664277]
[1645982605457,1.0,2772.2,2771.7,1.11664277]
[1645982605657,8.3,2772.3,2771.7,1.11664277]
[1645982606659,7.3,2772.3,2771.7,1.11664277]
[1645982608404,8.3,2772.3,2771.7,1.11664277]
[1645982608808,0.00554175,2772.1,2771.7,1.11664277]
[1645982610005,0.00554182,2772.0,2771.7,1.11664277]
[1645982610864,0.00554182,2772.0,2771.7,1.64464752]
[1645982611052,0.00202336,2772.5,2771.8,8.5]
[1645982611053,2.336e-05,2772.5,2771.8,8.5]
[1645982611257,9.10358253,2773.4,2771.9,12.05980193]
[1645982611456,3.252e-05,2772.7,2772.2,5.48195]
[1645982611657,7.3,2773.4,2772.3,2.40394927]
[1645982611854,7.3,2773.4,2772.4,9.95993395]
[1645982612057,1.78444197,2773.8,2772.7,5.0]
[1645982612352,1.78444197,2773.8,2772.8,0.519]
[1645982612353,3.5,2773.7,2772.8,0.519]
[1645982612553,3.5,2773.7,2772.7,0.519]
[1645982612757,1.78444197,2773.8,2772.5,0.519]
[1645982612952,3.5,2773.7,2772.5,0.519]
[1645982613357,3.5,2773.9,2772.6,1.27320226]
[1645982613554,1.0,2773.7,2772.6,1.27320226]
[1645982613753,0.00510917,2773.2,2772.6,1.27320226]
[1645982614155,0.00510917,2773.2,2772.5,0.519]
[1645982614603,0.00202346,2773.4,2772.5,0.519]
[1645982614810,0.00510934,2773.0,2772.5,1.06405129]
[1645982615209,0.00510934,2773.0,2772.8,1.3310945]
[1645982615710,0.02043411,2773.4,2772.8,1.3310945]
[1645982615711,0.0307657,2773.4,2772.8,1.3310945]
[1645982616110,0.00510931,2773.0,2772.8,1.3310945]
[1645982617113,0.00866345,2773.0,2772.8,1.3310945]
[1645982617311,0.00355414,2773.0,2772.8,1.3310945]
[1645982618212,0.0307657,2773.4,2772.8,1.3310945]
[1645982618449,0.00355414,2773.0,2772.8,1.3310945]
[1645982619854,0.00355414,2773.0,2772.8,1.8500945]
[1645982620254,0.0210224,2773.0,2772.8,1.8500945]
[1645982620455,0.01746826,2773.0,2772.8,1.8500945]
[1645982620854,0.0230025,2773.0,2772.8,1.8500945]
[1645982622900,0.01746826,2773.0,2772.8,1.8500945]
[1645982623304,0.0230025,2773.0,2772.8,1.8500945]
[1645982624201,0.01746826,2773.0,2772.8,1.8500945]
[1645982624400,0.02321521,2773.0,2772.8,1.8500945]
[1645982625406,0.00202346,2773.8,2772.8,1.8500945]
[1645982625606,0.00558092,2773.0,2772.8,1.8500945]
[1645982628054,0.00529775,2773.0,2772.8,1.8500945]
[1645982628957,1.00202346,2773.9,2773.6,1.34845393]
[1645982629159,1.0,2773.9,2773.6,1.34845393]
[1645982629362,1.00202346,2774.3,2773.6,1.34845393]
[1645982629610,3.5,2774.2,2773.6,1.34845393]
[1645982629818,4.5,2774.2,2773.6,1.34845393]
[1645982630214,1.0,2774.2,2773.6,1.34845393]
[1645982630415,0.0052747,2774.0,2772.8,0.519]
[1645982630613,0.0052747,2774.0,2772.6,7.076]
[1645982630614,0.02030462,2773.0,2772.6,7.076]
[1645982631020,0.02030462,2773.0,2772.6,6.9319]
[1645982631417,0.02030462,2773.0,2772.7,1.09961424]
[1645982631815,0.00555866,2772.9,2772.7,1.09961424]
[1645982632820,0.02030462,2773.0,2772.7,1.09961424]
[1645982634760,0.02030462,2773.0,2772.7,1.0986346]
[1645982635157,0.02587504,2773.0,2772.7,1.0986346]
[1645982635358,0.00557042,2773.0,2772.7,1.0986346]
[1645982636461,0.00574851,2773.0,2772.7,1.0986346]
[1645982637305,0.02299037,2773.4,2772.7,1.0986346]
[1645982637607,0.00574851,2773.0,2772.7,1.0986346]
[1645982638705,0.01433274,2774.0,2772.7,1.0986346]
[1645982638909,0.00574851,2773.0,2772.7,1.0986346]
[1645982639712,0.01433274,2774.0,2772.7,1.0986346]
[1645982640111,0.00574851,2773.0,2772.7,1.0986346]
[1645982640314,0.02605313,2773.0,2772.7,1.0986346]
[1645982640951,0.02030462,2773.0,2772.7,1.0986346]
[1645982641154,0.02605313,2773.0,2772.5,1.06405129]
[1645982641368,0.02605313,2773.0,2772.5,0.54505129]
[1645982641556,0.02605313,2773.0,2772.4,0.00574963]
[1645982642353,0.02605313,2773.0,2772.0,3.2992]
[1645982642555,0.00574863,2772.8,2772.4,0.00574944]
[1645982643454,0.02030462,2773.0,2772.1,1.14218173]
[1645982643656,0.00505851,2772.7,2772.4,0.00505904]
[1645982644814,0.00505845,2772.7,2772.4,0.00505905]
[1645982645817,4.50202346,2773.0,2771.9,0.1311691]
[1645982646018,0.00505845,2772.7,2772.4,0.00505905]
[1645982646924,0.90760845,2772.7,2772.4,0.00505905]
[1645982647118,3.5,2772.6,2772.4,0.00505905]
[1645982647320,4.5,2772.6,2772.4,0.00556118]
[1645982647519,3.5,2772.5,2772.4,0.00556118]
[1645982647723,4.5,2772.5,2772.4,0.00556118]
[1645982648678,4.5,2772.5,2772.3,0.00556125]
[1645982649278,4.5,2772.5,2771.7,0.52800475]
[1645982649681,4.5,2772.5,2772.3,0.00556129]
[1645982650281,1.0,2772.5,2772.3,0.00556129]
[1645982650481,1.0,2772.5,2771.7,0.52800475]
[1645982650682,1.21412346,2772.9,2771.7,0.52800475]
[1645982650683,4.5,2772.6,2771.7,0.52800475]
[1645982650883,1.21412346,2772.9,2772.3,0.00538069]
[1645982650884,0.00537977,2772.7,2772.3,0.00538069]
[1645982651089,1.0,2772.6,2772.3,0.00538069]
[1645982651287,0.00537977,2772.7,2772.3,0.00538069]
[1645982651684,4.5,2772.8,2771.9,1.77813363]
[1645982652107,0.00537989,2772.7,2772.4,0.00538062]
[1645982652902,4.5,2772.8,2771.9,1.77813363]
[1645982653302,0.00537995,2772.7,2772.4,0.00538059]
[1645982654102,4.5,2772.8,2771.9,1.77813363]
[1645982654305,4.5,2772.8,2771.9,0.5]
[1645982654504,0.00574864,2772.7,2772.4,0.00574932]
[1645982656561,0.00574864,2772.7,2771.5,0.1441]
[1645982656562,0.519,2772.6,2771.5,0.1441]
[1645982656761,0.0008,2772.2,2770.8,0.1441]
[1645982656962,0.0008,2772.2,2771.2,0.02300745]
[1645982656963,0.519,2772.1,2771.2,0.02300745]
[1645982657164,5.0,2771.8,2771.2,7.45e-06]
[1645982657367,5.0,2771.8,2769.9,0.1443]
[1645982657368,3.5,2771.7,2769.9,0.1443]
[1645982657662,1.80658,2771.1,2770.0,1.52633361]
[1645982657860,1.80658,2771.1,2769.7,0.00096]
[1645982657861,1.80655,2770.9,2769.7,0.00096]
[1645982658060,1.80655,2770.9,2769.5,0.00096]
[1645982658267,4.019,2770.8,2769.5,0.00096]
[1645982658461,4.19908108,2770.8,2769.5,0.00096]
[1645982658661,0.18008108,2770.7,2769.5,0.00096]
[1645982658863,1.8068138,2770.4,2769.5,0.00096]
[1645982659162,3.5,2770.3,2768.8,0.14526]
[1645982659711,3.5,2770.3,2768.8,0.00096]
[1645982659712,4.5,2770.3,2768.8,0.00096]
[1645982659919,4.5,2770.3,2768.6,0.14536]
[1645982660112,4.5,2770.3,2768.7,0.00096]
[1645982660312,5.40341,2770.3,2769.0,1.42443528]
[1645982660514,5.40341,2770.3,2769.1,0.00096]
[1645982660716,0.90341,2770.1,2769.1,0.00096]
[1645982660912,3.5,2770.0,2769.1,0.00096]
[1645982661313,4.5,2770.0,2769.8,0.5]
[1645982661516,3.5,2769.9,2769.8,0.5]
[1645982661815,3.5,2769.9,2769.4,0.00575527]
[1645982662015,4.5,2769.9,2769.4,0.00575527]
[1645982662518,4.5,2769.9,2768.7,0.1444]
[1645982662519,4.5,2769.9,2768.5,0.14536]
[1645982662715,0.90359,2769.7,2768.8,0.00096]
[1645982662915,3.5,2769.6,2769.5,0.00575519]
[1645982663358,4.5,2769.6,2769.5,0.00575519]
[1645982663560,3.5,2769.6,2769.5,0.00575519]
[1645982663758,4.5,2769.6,2769.5,0.00575519]
[1645982663958,3.5,2769.6,2769.5,0.00575519]
[1645982664258,3.5,2769.6,2769.4,0.00575527]
[1645982664259,5.40364,2769.6,2769.4,0.00575527]
[1645982664459,3.5,2769.5,2769.4,0.00575527]
[1645982665067,4.5,2769.5,2769.4,0.00575527]
[1645982665262,4.5,2769.5,2769.3,0.00575535]
[1645982665571,3.5,2769.4,2769.3,0.00575535]
[1645982665763,5.019,2769.4,2769.3,0.00575535]
[1645982665967,4.9227315,2769.4,2769.3,0.00575535]
[1645982666163,6.09046797,2769.4,2768.4,0.0134912]
[1645982666364,0.90374,2769.1,2768.4,0.0134912]
[1645982666564,0.90374,2769.1,2768.8,0.02109165]
[1645982667617,0.90374,2769.1,2768.8,0.00527241]
[1645982668818,0.90374,2769.1,2768.4,0.0134912]
[1645982669015,0.90374,2769.1,2768.8,0.00527241]
[1645982669220,0.15678338,2769.2,2768.8,0.00527241]
[1645982669616,1.9572992,2769.4,2768.8,0.00527241]
[1645982670129,1.9572992,2769.4,2768.9,0.00531477]
[1645982670321,1.08391108,2769.3,2768.9,0.00531477]
[1645982670520,1.98774188,2769.3,2768.9,0.00531477]
[1645982670721,1.98774188,2769.3,2768.9,1.477e-05]
[1645982670722,9.19908108,2769.2,2768.9,1.477e-05]
[1645982670974,8.5,2769.1,2768.4,0.03475347]
[1645982671175,4.92305,2769.0,2768.4,0.03475347]
[1645982671373,6.91124108,2769.0,2768.5,0.00803013]
[1645982671574,1.08412278,2768.9,2768.5,0.00803013]
[1645982671773,4.019,2768.8,2768.5,0.00803013]
[1645982671973,5.26462229,2768.8,2768.5,0.00803013]
[1645982672176,6.26462229,2768.8,2768.5,0.00803013]
[1645982672374,6.26462229,2768.8,2767.8,0.4030678]
[1645982672375,0.90394,2768.5,2767.8,0.4030678]
[1645982672574,0.90394,2768.5,2767.8,0.3530678]
[1645982672575,3.5,2768.4,2767.8,0.3530678]